Cogmind - Beta 9.5 *** ADVENTURER MODE // 2020.04.07 @ 18:34:04 Player: halfcool Result: Destroyed by G-47 Trooper with Particle Gun Performance ------------- Evolutions (0) 0 Regions Visited (4) 800 Robots Destroyed (10) 50 Value Destroyed (181) 181 Prototype IDs (3) 60 Alien Tech Used (0) 0 Bonus (300) 300 TOTAL SCORE: 1391 Bonus ------- Aligned with FarCom 300 Cogmind --------- Core Integrity 0/250 Matter 235/300 Energy 207/265 System Corruption 0% Temperature Cool (44) Movement Walking (90) Location -9/Mines Parts ------- > --- POWER (1) -------- Improved Ion Engine > --- PROPULSION (2) --- Potential Leg Potential Leg > --- UTILITY (2) ------ High-capacity Storage Unit Light Armor Plating > --- WEAPON (2) ------- YOLO Cannon > --- INVENTORY (12) --- Ion Engine Aluminum Leg Aluminum Leg Aluminum Leg Heat Sink Medium Battery (200) Large Battery (300) Large Matter Pod (110) Medium Laser Medium Laser Particle Gun Peak State ------------ > --- POWER ------------ Improved Ion Engine > --- PROPULSION ------- Potential Leg Potential Leg > --- UTILITY ---------- High-capacity Storage Unit Cloak of Protection > --- WEAPON ----------- YOLO Cannon > --- INVENTORY -------- Ion Engine Aluminum Leg Aluminum Leg Aluminum Leg Heat Sink Medium Battery Large Matter Pod Light Armor Plating Medium Laser Medium Laser [Rating: 52] Favorites ----------- Power Improved Ion Engine Engine Improved Ion Engine Propulsion Aluminum Leg Leg Aluminum Leg Utility Large Battery Device Cloak of Protection Storage Large Battery Protection Light Armor Plating Weapon Medium Laser Energy Gun Medium Laser Energy Cannon YOLO Cannon Build | -11 -10 -10 -10 -9 ------- Run | Scr Mat Min Exi Min Slots Evolved . | . . . . . Power . | . . . . . Propulsion . | . . . . . Utility . | . . . . . Weapon . | . . . . . Parts Attached 26 | 7 1 7 11 . Power 3 | 1 . 2 . . Engine 3 | 1 . 2 . . Core . | . . . . . Reactor . | . . . . . Propulsion 5 | 2 . 1 2 . Treads . | . . . . . Leg 5 | 2 . 1 2 . Wheel . | . . . . . Hover . | . . . . . Flight . | . . . . . Utility 11 | 1 1 3 6 . Device 1 | . . . 1 . Storage 7 | 1 1 1 4 . Processor . | . . . . . Hackware . | . . . . . Protection 3 | . . 2 1 . Artifact . | . . . . . Weapon 7 | 3 . 1 3 . Energy Gun 4 | 3 . 1 . . Energy Cannon 3 | . . . 3 . Ballistic Gun . | . . . . . Ballistic Cannon . | . . . . . Launcher . | . . . . . Special Weapon . | . . . . . Impact Weapon . | . . . . . Slashing Weapon . | . . . . . Piercing Weapon . | . . . . . Special Melee Weapon . | . . . . . Unidentified Prototypes 3 | . . . 3 . Parts Lost 1 | . . . 1 . Power . | . . . . . Propulsion . | . . . . . Utility 1 | . . . 1 . Weapon . | . . . . . Highest Loss Streak 1 | . . . 1 . Average Slot Usage (%) 96 | . 97 99 96 85 Engine 14 | . 14 14 14 14 Leg 27 | . 28 28 27 28 Device 1 | . . . 1 . Storage 22 | . 26 18 23 14 Protection 4 | . . 8 2 14 Energy Gun 23 | . 28 28 23 . Energy Cannon 2 | . . . 2 14 Naked Turns . | . . . . . Heaviest Build 65 | 11 13 18 65 60 Greatest Support 60 | 20 20 20 60 60 Greatest Overweight (x) 6 | 1 . . 6 . Average Overweight (x) . | . . . . . Largest Inventory Capacity 24 | 6 6 6 24 12 Average Capacity 7 | 5 6 4 8 12 Most Carried 12 | 6 4 6 12 11 Average Carried 6 | 4 4 4 6 11 Final Capacity 12 | 6 6 4 12 12 Final Carried 11 | 4 4 4 11 11 Class Distribution -------------------- 83% | Mutant 16% | Scavenger-Mutant Dominant Class ---------------- Mutant | -10/Materials Mutant | -10/Mines Mutant | -10/Exiles Mutant | -9/Mines Resources | -11 -10 -10 -10 -9 ----------- Run | Scr Mat Min Exi Min Matter Collected 390 | 207 . 143 40 . Remotely . | . . . . . Salvage Created 239 | . . 197 42 . Parts 9 | . . 9 . . Haulers Intercepted . | . . . . . Recyclers Shooed . | . . . . . Parts Field Recycled . | . . . . . Retrieved Matter . | . . . . . Parts Self-Destructed . | . . . . . Prevented . | . . . . . Kills | -11 -10 -10 -10 -9 ------- Run | Scr Mat Min Exi Min Combat Hostiles Destroyed 10 | . . 4 6 . Guns 3 | . . 3 . . Cannons 1 | . . . 1 . AOE 5 | . . . 5 . Classes Destroyed 3 | . . 2 1 . Grunt 2 | . . 2 . . Sentry 2 | . . 2 . . Assembled 6 | . . . 6 . Best Kill Streak 6 | . . 2 6 . Combat Bots Only 6 | . . 2 6 . Max Kills in Single Turn 5 | . . 1 5 . Gunslinging . | . . . . . Exploded 5 | . . . 5 . Melee . | . . . . . Uniques/NPCs Destroyed . | . . . . . Combat | -11 -10 -10 -10 -9 -------- Run | Scr Mat Min Exi Min Damage Taken 1306 | . . 302 926 78 Core 251 | . . 45 136 70 Absorbed by Shields . | . . . . . Core Remaining (%) 100 | 100 . . . . Volleys Fired 36 | . . 21 14 1 Largest 2 | . . 2 2 1 Hottest 115 | . . 115 115 100 Shots Fired 63 | . . 42 20 1 Gun 54 | . . 42 12 . Cannon 9 | . . . 8 1 Launcher . | . . . . . Special . | . . . . . Kinetic . | . . . . . Thermal 63 | . . 42 20 1 Explosive . | . . . . . Electromagnetic . | . . . . . Robot Hit Streak 11 | . . 11 1 . Robot Miss Streak 2 | . . 2 2 1 Penetration Max . | . . . . . Secondary Targets . | . . . . . Shots Hit Robots 33 | . . 31 2 . Core Hits 14 | . . 8 6 . Critical Hits 1 | . . . 1 . Critical Kills 1 | . . . 1 . Critical Parts Destroyed . | . . . . . Melee Attacks . | . . . . . Impact . | . . . . . Slashing . | . . . . . Piercing . | . . . . . Sneak Attacks . | . . . . . Combat Hostiles . | . . . . . Follow-up Attacks . | . . . . . Damage Inflicted 914 | . . 377 537 . Guns 377 | . . 377 . . Cannons 128 | . . . 128 . Explosions 409 | . . . 409 . Melee . | . . . . . Ramming . | . . . . . Kinetic . | . . . . . Thermal 914 | . . 377 537 . Explosive . | . . . . . Electromagnetic . | . . . . . Impact . | . . . . . Slashing . | . . . . . Piercing . | . . . . . Highest Corruption . | . . . . . Average Corruption . | . . . . . Corruption Purged . | . . . . . Overload Shots . | . . . . . Overflow Damage 12 | . . . 12 . Projectiles . | . . . . . Explosions 12 | . . . 12 . Melee . | . . . . . Knockbacks . | . . . . . Impact . | . . . . . Kinetic . | . . . . . Secondary . | . . . . . Self-Inflicted Damage 59 | . . . . 59 Shots 1 | . . . . 1 Rammed . | . . . . . Targets Rammed . | . . . . . Kicked . | . . . . . Crushed . | . . . . . Highest Temperature 407 | . . 407 330 35 Average Temperature 160 | . . 204 94 35 Received Heat Transfer 189 | . . 174 . 15 Effects 7 | . . 7 . . Shutdowns 1 | . . 1 . . Energy Bleed 4 | . . 4 . . Matter Decay 2 | . . 2 . . Siege Activations . | . . . . . Robots Corrupted . | . . . . . Combat Hostiles . | . . . . . Parts Fried . | . . . . . Impact Corruptions . | . . . . . Robots Melted 1 | . . 1 . . Combat Hostiles 1 | . . 1 . . Parts Melted 1 | . . 1 . . Heat Transferred 1653 | . . 1073 580 . Parts Sabotaged . | . . . . . Parts Stolen . | . . . . . Parts Stripped . | . . . . . Power Chain Reactions . | . . . . . Missiles Intercepted . | . . . . . Alert | -11 -10 -10 -10 -9 ------- Run | Scr Mat Min Exi Min Peak Influence 105 | . . 105 . 9 Average Influence 35 | . . 57 . . Maximum Alert Level . | . . . . . Low Security (%) 100 | 100 100 100 . 100 Level 1 . | . . . . . Level 2 . | . . . . . Level 3 . | . . . . . Level 4 . | . . . . . Level 5 . | . . . . . High Security . | . . . . . Max Security . | . . . . . Squads Dispatched . | . . . . . Investigation . | . . . . . Extermination . | . . . . . Reinforcement . | . . . . . Assault . | . . . . . Garrison . | . . . . . Intercept . | . . . . . Construction Impeded . | . . . . . Haulers Reinforced . | . . . . . Stealth | -11 -10 -10 -10 -9 --------- Run | Scr Mat Min Exi Min Distress Signals . | . . . . . Communications Jammed . | . . . . . Distress Signals . | . . . . . Times Spotted 13 | . . 5 6 2 Peak Tracking Total 9 | . . 2 9 2 Tactical Retreats 3 | . . 1 2 . Traps | -11 -10 -10 -10 -9 ------- Run | Scr Mat Min Exi Min Traps Triggered 1 | . 1 . . . Indirectly . | . . . . . Trap Hack Attempts . | . . . . . Triggered . | . . . . . Disarmed . | . . . . . Reprogrammed . | . . . . . Reused . | . . . . . Traps Extracted . | . . . . . Installed . | . . . . . Triggered . | . . . . . Machines | -11 -10 -10 -10 -9 ---------- Run | Scr Mat Min Exi Min Machines Disabled 6 | . . . 5 1 Max in Single Turn 2 | . . . 2 1 Machines Sabotaged . | . . . . . Garrisons Compromised . | . . . . . Overloaded Fab Kills . | . . . . . Fab Network Shutdowns . | . . . . . Hacking | -11 -10 -10 -10 -9 --------- Run | Scr Mat Min Exi Min Machines Accessed 4 | . . . 4 . Terminals . | . . . . . Fabricators . | . . . . . Repair Stations . | . . . . . Recycling Units . | . . . . . Scanalyzers . | . . . . . Garrison Access . | . . . . . Total Hacks 48 | . . . 48 . Successful 48 | . . . 48 . Failed . | . . . . . Catastrophic . | . . . . . Database Lockouts . | . . . . . Manual 1 | . . . 1 . Terminals . | . . . . . Fabricators . | . . . . . Repair Stations . | . . . . . Recycling Units . | . . . . . Scanalyzers . | . . . . . Garrison Access . | . . . . . Terminal Hacks 48 | . . . 48 . Record 48 | . . . 48 . Fabricator Hacks . | . . . . . Repair Station Hacks . | . . . . . Recycling Unit Hacks . | . . . . . Scanalyzer . | . . . . . Garrison Access Hacks . | . . . . . Unauthorized Hacks . | . . . . . Terminals . | . . . . . Fabricators . | . . . . . Repair Stations . | . . . . . Recycling Units . | . . . . . Scanalyzers . | . . . . . Garrison Access . | . . . . . Data Cores Recovered . | . . . . . Used . | . . . . . Hacking Detections . | . . . . . Full Trace Events . | . . . . . Feedback Events . | . . . . . Feedback Blocked . | . . . . . Robot Schematics Acquired . | . . . . . Robots Built . | . . . . . Matter . | . . . . . Time . | . . . . . Total Robot Build Rating . | . . . . . Part Schematics Acquired . | . . . . . Parts Built . | . . . . . Matter . | . . . . . Time . | . . . . . Total Part Build Rating . | . . . . . Parts Repaired . | . . . . . Time . | . . . . . Parts Recycled . | . . . . . Recycled Matter . | . . . . . Retrieved Matter . | . . . . . Retrieved Components . | . . . . . Parts Scanalyzed . | . . . . . Part Schematics Acquired . | . . . . . Parts Damaged . | . . . . . Bothacking | -11 -10 -10 -10 -9 ------------ Run | Scr Mat Min Exi Min Used RIF Installer . | . . . . . Robots Hacked . | . . . . . Non-combat . | . . . . . Combat . | . . . . . Robot Hacks Applied . | . . . . . Relay Couplers Released . | . . . . . Robots Rewired . | . . . . . Allies Hacked . | . . . . . Hacks Repelled . | . . . . . Allies | -11 -10 -10 -10 -9 -------- Run | Scr Mat Min Exi Min Total Allies 3 | . . . . 3 Largest Group 3 | . . . . 3 Highest-Rated Group 40 | . . . . 40 Highest-Rated Ally 16 | . . . . 16 Total Orders . | . . . . . Ally Attacks . | . . . . . Total Damage . | . . . . . Kills . | . . . . . Allies Corrupted . | . . . . . Allies Melted . | . . . . . Intel | -11 -10 -10 -10 -9 ------- Run | Scr Mat Min Exi Min Robot Analysis Total . | . . . . . Derelict Logs Recovered 2 | . . 2 . . Drone Launches . | . . . . . Drone Recoveries . | . . . . . Exploration | -11 -10 -10 -10 -9 ------------- Run | Scr Mat Min Exi Min Turns Passed 1676 | 92 69 363 1082 70 Spaces Moved 1129 | 66 56 217 721 69 Core 7 | 7 . . . . Treads . | . . . . . Legs 1122 | 59 56 217 721 69 Wheels . | . . . . . Hover . | . . . . . Flight . | . . . . . Fastest Speed 50 | 50 120 120 90 90 Average Speed 128 | 116 120 120 137 90 Slowest Speed 300 | 120 120 120 300 90 Overloaded Moves . | . . . . . Propulsion Burnouts . | . . . . . Robots Hopped . | . . . . . Cave-ins Triggered . | . . . . . Exploration Rate (%) 33 | 4 13 40 93 16 Regions Visited 4 Branch Regions 3 Pre-discovered Areas 2 | . . 1 1 . Known Exits Taken . | . . . . . Unknown Exits Taken 4 | 1 1 1 1 . Scrap Searched 2 | . . 2 . . Spaces Dug . | . . . . . Terrain Destroyed 76 | . . . 56 20 Melee . | . . . . . Projectile 3 | . . . 2 1 AOE 73 | . . . 54 19 Actions | -11 -10 -10 -10 -9 --------- Run | Scr Mat Min Exi Min Total 1273 | 79 57 282 779 76 Wait 38 | . 1 18 13 6 Move 1125 | 65 55 216 720 69 Hop . | . . . . . Pick Up 25 | 6 . 9 10 . Fast Attach 17 | 4 1 2 10 . Attach 4 | 3 . . 1 . Detach 1 | 1 . . . . Swap 5 | . . 5 . . Drop 22 | . . 11 11 . Fire 36 | . . 21 14 1 Melee . | . . . . . Ram . | . . . . . Kick . | . . . . . Crush . | . . . . . Escape Stasis . | . . . . . Rewire . | . . . . . Trap . | . . . . . Miscellaneous . | . . . . . Route ------- -11/Scrapyard -10/Materials -10/Mines (discovered 2 exits: [*Mat] / *Exi) -10/Exiles (discovered 2 exits: [*Min x2]) -9/Mines History --------- Turn | Location | Event 10 | -11/Scrapyard | Discovered new exit (range 15) 93 | -11/Scrapyard | Entered Materials 117 | -10/Materials | Discovered new exit (range 11) 162 | -10/Materials | Entered Mines 312 | -10/Mines | Learned location of Storage (-9) 319 | -10/Mines | Build established: Mutant 344 | -10/Mines | Learned Materials terminal intel 493 | -10/Mines | Discovered new exit (range 10) 519 | -10/Mines | Deemed a non-threat by the Exiles lab entrance 520 | -10/Mines | Discovered new exit (range 5) 525 | -10/Mines | Entered Exiles 586 | -10/Exiles | Discovered new exit (range 15) 619 | -10/Exiles | Met 8R-AWN 648 | -10/Exiles | Met EX-HEX 734 | -10/Exiles | Met EX-DEC 761 | -10/Exiles | Visited The Gauntlet 1006 | -10/Exiles | Learned location of Zion (-7) 1111 | -10/Exiles | Discovered new exit (range 14) 1278 | -10/Exiles | Met EX-BIN 1300 | -10/Exiles | Aligned with FarCom system 1301 | -10/Exiles | Given EX-Vault access code 1406 | -10/Exiles | Opened EX-Vault 1414 | -10/Exiles | Found Prototype Energy Cannon 1414 | -10/Exiles | Identified YOLO Cannon 1433 | -10/Exiles | Found Prototype Device 1433 | -10/Exiles | Identified Cloak of Protection 1442 | -10/Exiles | Attacked by the Exiles 1448 | -10/Exiles | Found Prototype Leg 1448 | -10/Exiles | Identified Potential Leg 1452 | -10/Exiles | Found Potential Leg 1571 | -10/Exiles | Core integrity fell below 50% 1607 | -10/Exiles | Stole two prototypes: Potential Leg, YOLO Cannon 1607 | -10/Exiles | Entered Mines 1629 | -9/Mines | Assisted by bots powering up and referring to "LRC-V3" 1634 | -9/Mines | Met a Derelict bent on vengeance 1677 | -9/Mines | Core integrity fell below 20% 1677 | -9/Mines | Destroyed by G-47 Trooper with Particle Gun Last Messages --------------- 01542_ HV Slug penetrates Wall. 01542_ Penetrated by HV Slug. 01542_ HV Slug penetrates Wall. 01546_ Penetrated by HV Slug. 01546_ HV Slug penetrates Machine. 01546_ Machine disabled. 01546_ Penetrated by HV Slug. 01564_ Cloak of Protection destroyed. 01581_ Penetrated by HV Slug. 01581_ HV Slug penetrates Machine. 01581_ Machine disabled. 01581_ Penetrated by HV Slug. [Achievement: Tourist] LOCATION=UNKNOWN GOAL=ESCAPE 01629_ Trooper 2a: "Hello LRC-V3. What is your command?" 01629_ Mercenary 2a: "Hello LRC-V3. What is your command?" 01629_ Trooper 2b: "Hello LRC-V3. What is your command?" 01639_ K-01 Serf collects debris. 01676_ Pulverizer disabled. Map ----- +----------------------------------------------------+ | | | | | | | | | | | | | ???????????????????????????????????????????????? | | ???????????????????????????????????????????????? | | ???????????????????????????????????????????????? | | ???????????????????????????????????????????????? | | ?????????????????????????????????##########????? | | ?????????????????????????????????# #????? | | ?????????????????????????????????# #????? | | ?????????????????????????????????# """#????? | | ?????????????????????????????????# """#????? | | ?????????????????????????????????# """#????? | | ??????????????????????#####?##???# #????? | | ??????????????????????# #???# #????? | | ??????????????????????# """ #???#### #####????? | | ??????????????????????# """ #????### #????????? | | ?????????????????????##gg""" #????# #????????? | | ?????????????????????? #????# ###????????? | | ??????????????????????# #????# #??????????? | | ?????????????????????##;; ;;#?????# #??????????? | | ?????????????????????# ;;####### #??????????? | | ?????????????????????# ;@ g g ## #??????????? | | ?????????????????????## ;;; ;### g #??????????? | | ??????????????????????##;;; ####### ###????????? | | ???????????????????????# #?# # ##???????? | | ??????????????????####?# ## #?# # #???????? | | ??????????????????# ### ## ### #???????? | | ??????????????????# ## #???????? | | ??????????????????## ##### #???????? | | ???????????????????### #???## #???????? | | ?????????????????????## ##????# ##???????? | | ??????????????????????####?????# ##????????? | | ???????????????????????????????# ####?????????? | | ???????????????????????????????# #????????????? | | ???????????????????????????????# #????????????? | | ???????????????????????????????# #????????????? | | ???????????????????????????????# #????????????? | | ???????????????????????????????# #????????????? | | ??????????????????????????????? #????????????? | | ???????????????????????????????####????????????? | | ???????????????????????????????????????????????? | | ???????????????????????????????????????????????? | | ???????????????????????????????????????????????? | | ???????????????????????????????????????????????? | | ???????????????????????????????????????????????? | | ???????????????????????????????????????????????? | +----------------------------------------------------+ Best States ------------- Heat Dissipation 25 Energy Generation 12 Energy Capacity 565 Matter Stores 300 Matter Capacity 400 Sight Range 16 Terrain Scan Density 10 Cloak Strength 5 Armor Coverage 150 Resistance: KI 20 Resistance: TH 20 Resistance: EX 20 Resistance: EM 20 Resistance: I 20 Resistance: S 20 Resistance: P 20 Evasion (%) 42 Offensive Hacking 10 Item Schematics ----------------- None Robot Schematics ------------------ None Fabricated ------------ Nothing Alien Tech Used ----------------- None Achievements -------------- Librarian Quick And Dirty Tourist Challenges ------------ None Game ------ Seed AccelerationAlloyCarapace Manual? 0 Play Time 00:22:49 Cumulative 26.2 hours Start 2020.04.07 @ 18:09:04 End 2020.04.07 @ 18:34:04 Sessions 1 Manual Loads 0 Difficulty Adventurer Special Mode None Game No. 70 Rogue 69 Adventurer 1 Explorer 0 Win Type - Total 0 Types 0/0/0/0/0/0/0 Lore% 23 Gallery% 32 Achievement% 11 Wizard Run 0 Options --------- ASCII 0 Keyboard 0 Movement Numpad Keybinds 0 Fullscreen 1 Font 14/SmallcapsGlow Map View 84x54 Tactical HUD 1 Map Filters NONE Filters NONE Steam 1 RUN: f0cf0c1d-1e30-4c91-93c4-414944a20c03